[Event "Titled Tuesday Blitz December 06 Late 2022"]
[White "Sarana, Alexey"]
[Black "Santos Flores, Alberto"]
[WhiteFideId "24133795"]
[BlackFideId "3601234"]
[WhiteElo "2708"]
[BlackElo "2235"]
[Result "1-0"]
[Round "01"]
[TimeControl "180+1"]
[Date "2022.12.06"]
[WhiteClock "0:00:10"]
[BlackClock "0:00:05"]

1. d4 {[%clk 0:02:59]}  d5 {[%clk 0:02:58]} 2. c4 {[%clk 0:02:59]}  c6 {[%clk 0:02:54]} 3. Nf3 {[%clk 0:02:59]}  Nf6 {[%clk 0:02:55]} 4. Nc3 {[%clk 0:02:59]}  dxc4 {[%clk 0:02:51]} 5. a4 {[%clk 0:02:59]}  Bf5 {[%clk 0:02:51]} 6. Ne5 {[%clk 0:03:00]}  e6 {[%clk 0:02:50]} 7. f3 {[%clk 0:02:59]}  Bb4 {[%clk 0:02:51]} 8. e4 {[%clk 0:03:00]}  Bxe4 {[%clk 0:02:50]} 9. fxe4 {[%clk 0:03:00]}  Nxe4 {[%clk 0:02:50]} 10. Bd2 {[%clk 0:03:01]}  Qxd4 {[%clk 0:02:45]} 11. Nxe4 {[%clk 0:03:01]}  Qxe4+ {[%clk 0:02:45]} 12. Qe2 {[%clk 0:03:02]}  Bxd2+ {[%clk 0:02:46]} 13. Kxd2 {[%clk 0:03:03]}  Qd5+ {[%clk 0:02:46]} 14. Kc1 {[%clk 0:03:03]}  Na6 {[%clk 0:02:40]} 15. Qe3 {[%clk 0:02:59]}  O-O {[%clk 0:02:18]} 16. Bxc4 {[%clk 0:02:57]}  Qxg2 {[%clk 0:02:18]} 17. Rg1 {[%clk 0:02:57]}  Qxh2 {[%clk 0:02:17]} 18. Nf3 {[%clk 0:01:18]}  Qh5 {[%clk 0:01:59]} 19. Rg5 {[%clk 0:01:06]}  Qh1+ {[%clk 0:01:58]} 20. Rg1 {[%clk 0:00:39]}  Qh5 {[%clk 0:01:51]} 21. Ne5 {[%clk 0:00:29]}  Nb4 {[%clk 0:01:38]} 22. Qc3 {[%clk 0:00:24]}  Nd5 {[%clk 0:01:26]} 23. Bxd5 {[%clk 0:00:18]}  cxd5 {[%clk 0:01:26]} 24. Kb1 {[%clk 0:00:17]}  f6 {[%clk 0:01:00]} 25. Qc7 {[%clk 0:00:13]}  Qh6 {[%clk 0:00:34]} 26. Ng4 {[%clk 0:00:13]}  Qg5 {[%clk 0:00:27]} 27. Ka2 {[%clk 0:00:14]}  Rac8 {[%clk 0:00:20]} 28. Qd7 {[%clk 0:00:13]}  Kh8 {[%clk 0:00:14]} 29. Ne5 {[%clk 0:00:10]}  Qxg1 {[%clk 0:00:09]} 30. Rxg1 {[%clk 0:00:09]}  g5 {[%clk 0:00:07]} 31. Nf7+ {[%clk 0:00:08]}  Kg8 {[%clk 0:00:07]} 32. Nd6 {[%clk 0:00:07]}  Rcd8 {[%clk 0:00:06]} 33. Qxe6+ {[%clk 0:00:08]}  Kg7 {[%clk 0:00:07]} 34. Nf5+ {[%clk 0:00:08]}  Kg6 {[%clk 0:00:07]} 35. Ne7+ {[%clk 0:00:09]}  Kg7 {[%clk 0:00:07]} 36. Rh1 {[%clk 0:00:10]}  Rde8 {[%clk 0:00:05]} 37. Nf5+ {[%clk 0:00:11]}  Kg6 {[%clk 0:00:05]} 38. Rh6# {[%clk 0:00:10]} 1-0


[Site "https://www.chess.com"]

[Event "Titled Tuesday Blitz December 06 Late 2022"]
[White "Sattarov, Bobir"]
[Black "Bas Mas, Jose Joaquin"]
[WhiteFideId "14203081"]
[BlackFideId "22219064"]
[WhiteElo "2358"]
[BlackElo "2233"]
[Result "1-0"]
[Round "01"]
[TimeControl "180+1"]
[Date "2022.12.07"]
[WhiteClock "0:01:05"]
[BlackClock "0:01:14"]

1. e4 {[%clk 0:03:00]}  c5 {[%clk 0:02:58]} 2. Nc3 {[%clk 0:02:59]}  d6 {[%clk 0:02:55]} 3. Nf3 {[%clk 0:03:00]}  Nc6 {[%clk 0:02:53]} 4. d4 {[%clk 0:02:59]}  cxd4 {[%clk 0:02:53]} 5. Nxd4 {[%clk 0:03:00]}  Nf6 {[%clk 0:02:53]} 6. Bc4 {[%clk 0:03:00]}  g6 {[%clk 0:02:50]} 7. Nxc6 {[%clk 0:02:56]}  bxc6 {[%clk 0:02:48]} 8. e5 {[%clk 0:02:57]}  Nd7 {[%clk 0:02:38]} 9. exd6 {[%clk 0:02:45]}  exd6 {[%clk 0:02:37]} 10. O-O {[%clk 0:02:46]}  Be7 {[%clk 0:02:32]} 11. Bh6 {[%clk 0:02:36]}  Ne5 {[%clk 0:02:31]} 12. Bb3 {[%clk 0:02:33]}  Be6 {[%clk 0:02:26]} 13. Bxe6 {[%clk 0:02:18]}  fxe6 {[%clk 0:02:25]} 14. Bg7 {[%clk 0:02:19]}  Rg8 {[%clk 0:02:24]} 15. Bxe5 {[%clk 0:02:19]}  dxe5 {[%clk 0:02:23]} 16. Qg4 {[%clk 0:02:08]}  Qc8 {[%clk 0:02:14]} 17. Rad1 {[%clk 0:02:02]}  Rb8 {[%clk 0:02:12]} 18. Ne4 {[%clk 0:01:54]}  Rb4 {[%clk 0:02:05]} 19. c3 {[%clk 0:01:44]}  Rb5 {[%clk 0:02:00]} 20. c4 {[%clk 0:01:29]}  Rb7 {[%clk 0:01:58]} 21. Rd6 {[%clk 0:01:20]}  Kf7 {[%clk 0:01:49]} 22. Rfd1 {[%clk 0:01:12]}  Rd8 {[%clk 0:01:42]} 23. Rxd8 {[%clk 0:01:11]}  Bxd8 {[%clk 0:01:39]} 24. Nd6+ {[%clk 0:01:11]}  Kg7 {[%clk 0:01:39]} 25. Nxc8 {[%clk 0:01:12]}  Bf6 {[%clk 0:01:38]} 26. Qxe6 {[%clk 0:01:12]}  Rf7 {[%clk 0:01:32]} 27. Rd7 {[%clk 0:01:12]}  Rxd7 {[%clk 0:01:31]} 28. Qxd7+ {[%clk 0:01:13]}  Kg8 {[%clk 0:01:27]} 29. Nd6 {[%clk 0:01:02]}  h6 {[%clk 0:01:23]} 30. Qf7+ {[%clk 0:01:03]}  Kh8 {[%clk 0:01:22]} 31. Qxf6+ {[%clk 0:01:04]}  Kg8 {[%clk 0:01:17]} 32. Ne8 {[%clk 0:01:05]}  e4 {[%clk 0:01:14]} 33. Qg7# {[%clk 0:01:05]} 1-0


[Site "https://www.chess.com"]

[Event "Titled Tuesday Blitz December 06 Late 2022"]
[White "Silva, Pedro Gil Ferreira Da"]
[Black "Fernandez De La Vara, Arnaldo"]
[WhiteFideId "1946102"]
[BlackFideId "3518388"]
[WhiteElo "2241"]
[BlackElo "2387"]
[Result "1/2-1/2"]
[Round "01"]
[TimeControl "180+1"]
[Date "2022.12.07"]
[WhiteClock "0:01:02"]
[BlackClock "0:01:23"]

1. c4 {[%clk 0:02:56]}  c5 {[%clk 0:03:00]} 2. Nf3 {[%clk 0:02:49]}  Nc6 {[%clk 0:03:01]} 3. Nc3 {[%clk 0:02:47]}  Nf6 {[%clk 0:03:00]} 4. d4 {[%clk 0:02:47]}  cxd4 {[%clk 0:02:59]} 5. Nxd4 {[%clk 0:02:48]}  g6 {[%clk 0:03:00]} 6. g3 {[%clk 0:02:41]}  d6 {[%clk 0:03:00]} 7. Bg2 {[%clk 0:02:38]}  Bd7 {[%clk 0:03:00]} 8. O-O {[%clk 0:02:38]}  Bg7 {[%clk 0:02:59]} 9. b3 {[%clk 0:02:35]}  Nxd4 {[%clk 0:02:50]} 10. Qxd4 {[%clk 0:02:34]}  Bc6 {[%clk 0:02:51]} 11. Bb2 {[%clk 0:02:32]}  O-O {[%clk 0:02:48]} 12. Bxc6 {[%clk 0:02:25]}  bxc6 {[%clk 0:02:49]} 13. Rad1 {[%clk 0:02:25]}  Qa5 {[%clk 0:02:31]} 14. Qd2 {[%clk 0:02:23]}  Rfb8 {[%clk 0:02:15]} 15. Qc2 {[%clk 0:02:12]}  Nd7 {[%clk 0:02:04]} 16. h4 {[%clk 0:01:57]}  Nc5 {[%clk 0:01:51]} 17. Rd2 {[%clk 0:01:50]}  Qb4 {[%clk 0:01:45]} 18. Rfd1 {[%clk 0:01:47]}  a5 {[%clk 0:01:44]} 19. Ba1 {[%clk 0:01:30]}  a4 {[%clk 0:01:39]} 20. bxa4 {[%clk 0:01:20]}  Qxc4 {[%clk 0:01:37]} 21. h5 {[%clk 0:01:11]}  Qb5 {[%clk 0:01:23]} 22. axb5 {[%clk 0:01:02]} 1/2-1/2


[Site "https://www.chess.com"]

[Event "Titled Tuesday Blitz December 06 Late 2022"]
[White "Sivakumar, Shaaketh"]
[Black "BlackChess17"]
[WhiteFideId "30940176"]
[WhiteElo "2174"]
[BlackElo "2808"]
[Result "0-1"]
[Round "01"]
[TimeControl "180+1"]
[Date "2022.12.07"]
[WhiteClock "0:01:47"]
[BlackClock "0:01:45"]

1. d4 {[%clk 0:02:56]}  Nf6 {[%clk 0:02:58]} 2. Nf3 {[%clk 0:02:37]}  g6 {[%clk 0:02:56]} 3. Bf4 {[%clk 0:02:32]}  Bg7 {[%clk 0:02:57]} 4. Nc3 {[%clk 0:02:32]}  d6 {[%clk 0:02:52]} 5. e4 {[%clk 0:02:31]}  Bg4 {[%clk 0:02:52]} 6. Be2 {[%clk 0:02:31]}  Nc6 {[%clk 0:02:51]} 7. Qd2 {[%clk 0:02:30]}  Bxf3 {[%clk 0:02:45]} 8. Bxf3 {[%clk 0:02:26]}  Nd7 {[%clk 0:02:46]} 9. Be3 {[%clk 0:02:25]}  e5 {[%clk 0:02:45]} 10. d5 {[%clk 0:02:24]}  Nd4 {[%clk 0:02:46]} 11. O-O-O {[%clk 0:02:20]}  a6 {[%clk 0:02:43]} 12. h4 {[%clk 0:02:17]}  h5 {[%clk 0:02:42]} 13. Ne2 {[%clk 0:02:16]}  Nxf3 {[%clk 0:02:21]} 14. gxf3 {[%clk 0:02:17]}  Bf6 {[%clk 0:02:18]} 15. Bg5 {[%clk 0:02:13]}  Bxg5 {[%clk 0:02:17]} 16. hxg5 {[%clk 0:02:14]}  Qe7 {[%clk 0:02:17]} 17. Qe3 {[%clk 0:02:08]}  O-O {[%clk 0:02:11]} 18. Ng3 {[%clk 0:02:03]}  c6 {[%clk 0:01:54]} 19. Rh4 {[%clk 0:02:02]}  f6 {[%clk 0:01:48]} 20. gxf6 {[%clk 0:01:57]}  Qxf6 {[%clk 0:01:48]} 21. Rg1 {[%clk 0:01:49]}  Qxh4 {[%clk 0:01:47]} 22. Qh6 {[%clk 0:01:46]}  Qf4+ {[%clk 0:01:45]} 23. Qxf4 {[%clk 0:01:46]}  exf4 {[%clk 0:01:46]} 24. Nxh5 {[%clk 0:01:47]}  Ne5 {[%clk 0:01:45]} 0-1


[Site "https://www.chess.com"]

[Event "Titled Tuesday Blitz December 06 Late 2022"]
[White "Sjugirov, Sanan"]
[Black "Sukandar, Irine Kharisma"]
[WhiteFideId "4189302"]
[BlackFideId "7101937"]
[WhiteElo "2613"]
[BlackElo "2301"]
[Result "1-0"]
[Round "01"]
[TimeControl "180+1"]
[Date "2022.12.06"]
[WhiteClock "0:00:24"]
[BlackClock "0:00:04"]

1. e4 {[%clk 0:02:58]}  e5 {[%clk 0:02:59]} 2. Nf3 {[%clk 0:02:58]}  Nc6 {[%clk 0:03:00]} 3. Bb5 {[%clk 0:02:58]}  a6 {[%clk 0:03:00]} 4. Ba4 {[%clk 0:02:58]}  Nf6 {[%clk 0:03:01]} 5. O-O {[%clk 0:02:58]}  Be7 {[%clk 0:03:01]} 6. d3 {[%clk 0:02:58]}  b5 {[%clk 0:02:59]} 7. Bb3 {[%clk 0:02:58]}  O-O {[%clk 0:02:58]} 8. h3 {[%clk 0:02:49]}  d6 {[%clk 0:02:57]} 9. c3 {[%clk 0:02:46]}  Na5 {[%clk 0:02:55]} 10. Bc2 {[%clk 0:02:45]}  c5 {[%clk 0:02:56]} 11. Re1 {[%clk 0:02:45]}  Nc6 {[%clk 0:02:55]} 12. Nbd2 {[%clk 0:02:46]}  Re8 {[%clk 0:02:49]} 13. Nf1 {[%clk 0:02:46]}  Bf8 {[%clk 0:02:44]} 14. a4 {[%clk 0:02:46]}  Bb7 {[%clk 0:02:27]} 15. Bg5 {[%clk 0:02:44]}  h6 {[%clk 0:02:26]} 16. Bh4 {[%clk 0:02:44]}  g6 {[%clk 0:02:24]} 17. Ne3 {[%clk 0:02:43]}  Bg7 {[%clk 0:02:19]} 18. Nd5 {[%clk 0:02:36]}  g5 {[%clk 0:02:18]} 19. Nxf6+ {[%clk 0:02:35]}  Qxf6 {[%clk 0:02:07]} 20. Bg3 {[%clk 0:02:36]}  Ne7 {[%clk 0:02:07]} 21. Nh2 {[%clk 0:02:32]}  Ng6 {[%clk 0:02:05]} 22. Ng4 {[%clk 0:02:31]}  Qe7 {[%clk 0:02:01]} 23. Ne3 {[%clk 0:02:31]}  Nf4 {[%clk 0:01:53]} 24. Bb3 {[%clk 0:02:31]}  Qf6 {[%clk 0:01:32]} 25. Nf5 {[%clk 0:02:08]}  Bf8 {[%clk 0:01:31]} 26. h4 {[%clk 0:02:06]}  Bc8 {[%clk 0:01:25]} 27. hxg5 {[%clk 0:02:02]}  hxg5 {[%clk 0:01:24]} 28. Ne3 {[%clk 0:02:02]}  Be6 {[%clk 0:01:21]} 29. Bxf4 {[%clk 0:01:47]}  gxf4 {[%clk 0:01:02]} 30. Nd5 {[%clk 0:01:46]}  Qg5 {[%clk 0:00:53]} 31. Kf1 {[%clk 0:01:03]}  Rac8 {[%clk 0:00:26]} 32. axb5 {[%clk 0:00:59]}  axb5 {[%clk 0:00:26]} 33. Ra7 {[%clk 0:00:56]}  Qh4 {[%clk 0:00:19]} 34. Qf3 {[%clk 0:00:25]}  Bg7 {[%clk 0:00:09]} 35. g3 {[%clk 0:00:25]}  Qh3+ {[%clk 0:00:08]} 36. Qg2 {[%clk 0:00:25]}  f3 {[%clk 0:00:04]} 37. Qxh3 {[%clk 0:00:23]}  Bxh3+ {[%clk 0:00:04]} 38. Kg1 {[%clk 0:00:24]} 1-0


[Site "https://www.chess.com"]

[Event "Titled Tuesday Blitz December 06 Late 2022"]
[White "Souleidis, Georgios"]
[Black "Liu, Casper"]
[WhiteFideId "4206827"]
[BlackFideId "1454153"]
[WhiteElo "2401"]
[BlackElo "2217"]
[Result "1-0"]
[Round "01"]
[TimeControl "180+1"]
[Date "2022.12.07"]
[WhiteClock "0:00:16"]
[BlackClock "0:00:21"]

1. e4 {[%clk 0:02:55]}  c6 {[%clk 0:02:49]} 2. d3 {[%clk 0:02:49]}  d5 {[%clk 0:02:50]} 3. Nf3 {[%clk 0:02:50]}  dxe4 {[%clk 0:02:47]} 4. dxe4 {[%clk 0:02:51]}  Qxd1+ {[%clk 0:02:46]} 5. Kxd1 {[%clk 0:02:51]}  Nd7 {[%clk 0:02:44]} 6. Ne1 {[%clk 0:02:45]}  h5 {[%clk 0:02:42]} 7. Nd3 {[%clk 0:02:41]}  h4 {[%clk 0:02:42]} 8. Be3 {[%clk 0:02:23]}  h3 {[%clk 0:02:13]} 9. g3 {[%clk 0:02:23]}  Ngf6 {[%clk 0:02:14]} 10. f3 {[%clk 0:02:23]}  Nb6 {[%clk 0:02:07]} 11. Nd2 {[%clk 0:02:15]}  Be6 {[%clk 0:02:07]} 12. Nc5 {[%clk 0:02:14]}  O-O-O {[%clk 0:02:07]} 13. Nxe6 {[%clk 0:02:10]}  fxe6 {[%clk 0:02:07]} 14. a4 {[%clk 0:02:05]}  Kb8 {[%clk 0:02:02]} 15. a5 {[%clk 0:02:05]}  Nc8 {[%clk 0:02:01]} 16. Bc4 {[%clk 0:02:02]}  e5 {[%clk 0:02:00]} 17. Ke2 {[%clk 0:02:00]}  Nd6 {[%clk 0:01:59]} 18. Be6 {[%clk 0:01:53]}  Nb5 {[%clk 0:01:57]} 19. c3 {[%clk 0:01:50]}  Nc7 {[%clk 0:01:57]} 20. Bc4 {[%clk 0:01:45]}  e6 {[%clk 0:01:52]} 21. b4 {[%clk 0:01:43]}  Be7 {[%clk 0:01:46]} 22. Nb3 {[%clk 0:01:43]}  Rd7 {[%clk 0:01:44]} 23. Rhd1 {[%clk 0:01:42]}  Rhd8 {[%clk 0:01:44]} 24. Rxd7 {[%clk 0:01:33]}  Rxd7 {[%clk 0:01:45]} 25. Bc5 {[%clk 0:01:18]}  g5 {[%clk 0:01:32]} 26. Bxe7 {[%clk 0:01:15]}  Rxe7 {[%clk 0:01:32]} 27. Rd1 {[%clk 0:01:12]}  Kc8 {[%clk 0:01:31]} 28. g4 {[%clk 0:01:00]}  Nd7 {[%clk 0:01:28]} 29. Kf2 {[%clk 0:00:47]}  b5 {[%clk 0:01:27]} 30. axb6 {[%clk 0:00:47]}  axb6 {[%clk 0:01:28]} 31. Kg3 {[%clk 0:00:44]}  b5 {[%clk 0:01:27]} 32. Be2 {[%clk 0:00:44]}  Nf8 {[%clk 0:01:22]} 33. Kxh3 {[%clk 0:00:43]}  Ng6 {[%clk 0:01:22]} 34. Kg3 {[%clk 0:00:43]}  Nf4 {[%clk 0:01:22]} 35. Bf1 {[%clk 0:00:44]}  Na8 {[%clk 0:00:57]} 36. Nc5 {[%clk 0:00:40]}  Nb6 {[%clk 0:00:57]} 37. h4 {[%clk 0:00:28]}  gxh4+ {[%clk 0:00:57]} 38. Kxh4 {[%clk 0:00:29]}  Rg7 {[%clk 0:00:38]} 39. Kg3 {[%clk 0:00:21]}  Kc7 {[%clk 0:00:38]} 40. Kf2 {[%clk 0:00:21]}  Nc8 {[%clk 0:00:38]} 41. Ra1 {[%clk 0:00:19]}  Rh7 {[%clk 0:00:33]} 42. Nd3 {[%clk 0:00:14]}  Rh2+ {[%clk 0:00:25]} 43. Kg3 {[%clk 0:00:14]}  Rc2 {[%clk 0:00:25]} 44. Nxf4 {[%clk 0:00:14]}  exf4+ {[%clk 0:00:25]} 45. Kxf4 {[%clk 0:00:14]}  Rxc3 {[%clk 0:00:26]} 46. g5 {[%clk 0:00:15]}  Ne7 {[%clk 0:00:26]} 47. Be2 {[%clk 0:00:12]}  Rc2 {[%clk 0:00:24]} 48. Bd1 {[%clk 0:00:12]}  Rg2 {[%clk 0:00:23]} 49. Ra7+ {[%clk 0:00:11]}  Kd8 {[%clk 0:00:24]} 50. Bb3 {[%clk 0:00:10]}  Ng6+ {[%clk 0:00:24]} 51. Ke3 {[%clk 0:00:10]}  Rxg5 {[%clk 0:00:24]} 52. Bxe6 {[%clk 0:00:11]}  Rg1 {[%clk 0:00:20]} 53. f4 {[%clk 0:00:10]}  Re1+ {[%clk 0:00:19]} 54. Kf3 {[%clk 0:00:10]}  Rf1+ {[%clk 0:00:19]} 55. Ke3 {[%clk 0:00:09]}  Nxf4 {[%clk 0:00:19]} 56. Bf5 {[%clk 0:00:09]}  Ng2+ {[%clk 0:00:18]} 57. Kd4 {[%clk 0:00:09]}  Rd1+ {[%clk 0:00:18]} 58. Kc5 {[%clk 0:00:09]}  Ne3 {[%clk 0:00:16]} 59. Kxc6 {[%clk 0:00:09]}  Nxf5 {[%clk 0:00:16]} 60. exf5 {[%clk 0:00:09]}  Rf1 {[%clk 0:00:17]} 61. Rf7 {[%clk 0:00:08]}  Ke8 {[%clk 0:00:17]} 62. Rc7 {[%clk 0:00:07]}  Rxf5 {[%clk 0:00:17]} 63. Rb7 {[%clk 0:00:07]}  Kd8 {[%clk 0:00:17]} 64. Rxb5 {[%clk 0:00:08]}  Rf6+ {[%clk 0:00:15]} 65. Kb7 {[%clk 0:00:08]}  Rf7+ {[%clk 0:00:15]} 66. Kb8 {[%clk 0:00:09]}  Kd7 {[%clk 0:00:13]} 67. Rb7+ {[%clk 0:00:08]}  Ke6 {[%clk 0:00:13]} 68. Rxf7 {[%clk 0:00:09]}  Kxf7 {[%clk 0:00:14]} 69. b5 {[%clk 0:00:10]}  Ke6 {[%clk 0:00:15]} 70. b6 {[%clk 0:00:11]}  Kd6 {[%clk 0:00:15]} 71. b7 {[%clk 0:00:12]}  Kc6 {[%clk 0:00:16]} 72. Kc8 {[%clk 0:00:12]}  Kb6 {[%clk 0:00:17]} 73. b8=Q+ {[%clk 0:00:13]}  Kc6 {[%clk 0:00:18]} 74. Qc7+ {[%clk 0:00:13]}  Kd5 {[%clk 0:00:19]} 75. Qd7+ {[%clk 0:00:14]}  Kc5 {[%clk 0:00:18]} 76. Qe6 {[%clk 0:00:14]}  Kb5 {[%clk 0:00:19]} 77. Qd6 {[%clk 0:00:14]}  Ka4 {[%clk 0:00:20]} 78. Qb6 {[%clk 0:00:13]}  Ka3 {[%clk 0:00:21]} 79. Kc7 {[%clk 0:00:14]}  Ka2 {[%clk 0:00:22]} 80. Kc6 {[%clk 0:00:15]}  Ka1 {[%clk 0:00:23]} 81. Kc5 {[%clk 0:00:16]}  Ka2 {[%clk 0:00:23]} 82. Kc4 {[%clk 0:00:17]}  Ka1 {[%clk 0:00:24]} 83. Kc3 {[%clk 0:00:17]}  Ka2 {[%clk 0:00:21]} 84. Qb2# {[%clk 0:00:16]} 1-0


[Site "https://www.chess.com"]

[Event "Titled Tuesday Blitz December 06 Late 2022"]
[White "Storey, Charles H"]
[Black "Kuzmicz, Krystian"]
[WhiteFideId "406686"]
[BlackFideId "1119125"]
[WhiteElo "2251"]
[BlackElo "2379"]
[Result "1-0"]
[Round "01"]
[TimeControl "180+1"]
[Date "2022.12.07"]
[WhiteClock "0:00:18"]
[BlackClock "0:00:43"]

1. e4 {[%clk 0:02:59]}  c5 {[%clk 0:02:59]} 2. Nf3 {[%clk 0:02:57]}  e6 {[%clk 0:02:59]} 3. d3 {[%clk 0:02:57]}  Nc6 {[%clk 0:02:59]} 4. Nbd2 {[%clk 0:02:57]}  d5 {[%clk 0:02:58]} 5. g3 {[%clk 0:02:57]}  Bd6 {[%clk 0:02:57]} 6. Bg2 {[%clk 0:02:57]}  Nge7 {[%clk 0:02:57]} 7. O-O {[%clk 0:02:57]}  Qc7 {[%clk 0:02:57]} 8. Re1 {[%clk 0:02:57]}  f6 {[%clk 0:02:57]} 9. Nf1 {[%clk 0:02:48]}  Bd7 {[%clk 0:02:56]} 10. a3 {[%clk 0:02:47]}  O-O-O {[%clk 0:02:55]} 11. b4 {[%clk 0:02:45]}  g5 {[%clk 0:02:43]} 12. bxc5 {[%clk 0:02:44]}  Bxc5 {[%clk 0:02:42]} 13. d4 {[%clk 0:02:38]}  Bd6 {[%clk 0:02:39]} 14. e5 {[%clk 0:02:18]}  fxe5 {[%clk 0:02:39]} 15. dxe5 {[%clk 0:02:18]}  Nxe5 {[%clk 0:02:32]} 16. Bxg5 {[%clk 0:02:18]}  Nxf3+ {[%clk 0:02:25]} 17. Qxf3 {[%clk 0:02:15]}  Rhg8 {[%clk 0:02:23]} 18. Be3 {[%clk 0:02:04]}  Rdf8 {[%clk 0:02:20]} 19. Qe2 {[%clk 0:01:56]}  Nc6 {[%clk 0:02:19]} 20. c4 {[%clk 0:01:53]}  d4 {[%clk 0:02:14]} 21. Bd2 {[%clk 0:01:46]}  e5 {[%clk 0:02:13]} 22. c5 {[%clk 0:01:43]}  Be7 {[%clk 0:02:07]} 23. Rec1 {[%clk 0:01:34]}  Rg6 {[%clk 0:02:00]} 24. Rab1 {[%clk 0:01:17]}  Rgf6 {[%clk 0:01:59]} 25. Be1 {[%clk 0:01:17]}  Nd8 {[%clk 0:01:35]} 26. Nd2 {[%clk 0:01:16]}  Bc6 {[%clk 0:01:34]} 27. Ne4 {[%clk 0:01:16]}  Rg6 {[%clk 0:01:30]} 28. Nd6+ {[%clk 0:01:13]}  Bxd6 {[%clk 0:01:24]} 29. cxd6 {[%clk 0:01:13]}  Rxd6 {[%clk 0:01:15]} 30. Bb4 {[%clk 0:01:12]}  Re8 {[%clk 0:01:11]} 31. Bxd6 {[%clk 0:01:11]}  Qxd6 {[%clk 0:01:12]} 32. Be4 {[%clk 0:00:53]}  Re7 {[%clk 0:01:11]} 33. Qf3 {[%clk 0:00:34]}  Kc7 {[%clk 0:00:53]} 34. Qf8 {[%clk 0:00:30]}  Qd7 {[%clk 0:00:44]} 35. Bf5 {[%clk 0:00:23]}  Qd5 {[%clk 0:00:43]} 36. Qxe7+ {[%clk 0:00:22]}  Kb8 {[%clk 0:00:43]} 37. Be4 {[%clk 0:00:18]} 1-0


[Site "https://www.chess.com"]

[Event "Titled Tuesday Blitz December 06 Late 2022"]
[White "Suder, Jakub"]
[Black "Pham, Le Thao Nguyen"]
[WhiteFideId "1195310"]
[BlackFideId "12401226"]
[WhiteElo "2245"]
[BlackElo "2282"]
[Result "1-0"]
[Round "01"]
[TimeControl "180+1"]
[Date "2022.12.07"]
[WhiteClock "0:01:32"]
[BlackClock "0:01:15"]

1. d4 {[%clk 0:03:00]}  Nf6 {[%clk 0:02:58]} 2. c4 {[%clk 0:03:00]}  g6 {[%clk 0:02:56]} 3. Nc3 {[%clk 0:03:00]}  d6 {[%clk 0:02:54]} 4. e4 {[%clk 0:03:00]}  Bg7 {[%clk 0:02:54]} 5. Nf3 {[%clk 0:03:01]}  O-O {[%clk 0:02:53]} 6. Be2 {[%clk 0:03:01]}  Re8 {[%clk 0:02:49]} 7. O-O {[%clk 0:03:01]}  Nc6 {[%clk 0:02:47]} 8. Be3 {[%clk 0:02:58]}  e5 {[%clk 0:02:47]} 9. d5 {[%clk 0:02:57]}  Ne7 {[%clk 0:02:46]} 10. Ne1 {[%clk 0:02:57]}  Nd7 {[%clk 0:02:42]} 11. Nd3 {[%clk 0:02:48]}  f5 {[%clk 0:02:41]} 12. f3 {[%clk 0:02:45]}  Nf6 {[%clk 0:02:39]} 13. Bf2 {[%clk 0:02:46]}  a6 {[%clk 0:02:37]} 14. c5 {[%clk 0:02:45]}  Rb8 {[%clk 0:02:36]} 15. Rc1 {[%clk 0:02:43]}  b5 {[%clk 0:02:35]} 16. cxb6 {[%clk 0:02:42]}  cxb6 {[%clk 0:02:34]} 17. Kh1 {[%clk 0:02:38]}  b5 {[%clk 0:02:34]} 18. a3 {[%clk 0:02:36]}  a5 {[%clk 0:02:34]} 19. b4 {[%clk 0:02:36]}  axb4 {[%clk 0:02:28]} 20. Nxb4 {[%clk 0:02:36]}  Bd7 {[%clk 0:02:27]} 21. Qb3 {[%clk 0:02:33]}  Ra8 {[%clk 0:02:25]} 22. Nxb5 {[%clk 0:02:18]}  Bxb5 {[%clk 0:02:13]} 23. Bxb5 {[%clk 0:02:18]}  Rf8 {[%clk 0:02:13]} 24. Nc6 {[%clk 0:02:15]}  Nxc6 {[%clk 0:02:11]} 25. dxc6+ {[%clk 0:02:14]}  Kh8 {[%clk 0:02:07]} 26. exf5 {[%clk 0:02:15]}  gxf5 {[%clk 0:02:07]} 27. c7 {[%clk 0:02:14]}  Qc8 {[%clk 0:02:06]} 28. a4 {[%clk 0:02:09]}  d5 {[%clk 0:02:04]} 29. Bb6 {[%clk 0:02:01]}  e4 {[%clk 0:02:01]} 30. a5 {[%clk 0:01:56]}  Bh6 {[%clk 0:01:55]} 31. Rc6 {[%clk 0:01:51]}  Bf4 {[%clk 0:01:49]} 32. Bd4 {[%clk 0:01:48]}  Kg7 {[%clk 0:01:36]} 33. Qc3 {[%clk 0:01:45]}  Bg5 {[%clk 0:01:29]} 34. fxe4 {[%clk 0:01:45]}  dxe4 {[%clk 0:01:27]} 35. Rd6 {[%clk 0:01:36]}  Rf7 {[%clk 0:01:23]} 36. Bb6 {[%clk 0:01:33]}  Qf8 {[%clk 0:01:15]} 37. Rd8 {[%clk 0:01:32]} 1-0


[Site "https://www.chess.com"]

[Event "Titled Tuesday Blitz December 06 Late 2022"]
[White "Tirelli, Mauro"]
[Black "Mikhailov, Viacheslav"]
[WhiteFideId "845353"]
[BlackFideId "4187369"]
[WhiteElo "2152"]
[BlackElo "2381"]
[Result "0-1"]
[Round "01"]
[TimeControl "180+1"]
[Date "2022.12.07"]
[WhiteClock "0:00:01"]
[BlackClock "0:01:31"]

1. d4 {[%clk 0:03:00]}  Nf6 {[%clk 0:02:59]} 2. c4 {[%clk 0:02:59]}  g6 {[%clk 0:03:00]} 3. Nc3 {[%clk 0:02:53]}  Bg7 {[%clk 0:03:01]} 4. e4 {[%clk 0:02:53]}  O-O {[%clk 0:03:01]} 5. h3 {[%clk 0:02:51]}  d6 {[%clk 0:03:02]} 6. Bg5 {[%clk 0:02:51]}  c6 {[%clk 0:03:01]} 7. Qd2 {[%clk 0:02:49]}  a6 {[%clk 0:02:55]} 8. O-O-O {[%clk 0:02:41]}  b5 {[%clk 0:02:55]} 9. a3 {[%clk 0:02:29]}  Nbd7 {[%clk 0:02:46]} 10. Nf3 {[%clk 0:02:07]}  Nb6 {[%clk 0:02:28]} 11. Bh6 {[%clk 0:01:52]}  Nxc4 {[%clk 0:02:23]} 12. Bxc4 {[%clk 0:01:52]}  bxc4 {[%clk 0:02:24]} 13. Rhe1 {[%clk 0:01:45]}  Qa5 {[%clk 0:02:24]} 14. Bxg7 {[%clk 0:01:32]}  Kxg7 {[%clk 0:02:24]} 15. g4 {[%clk 0:01:08]}  Rb8 {[%clk 0:02:23]} 16. g5 {[%clk 0:01:05]}  Nh5 {[%clk 0:02:16]} 17. h4 {[%clk 0:00:44]}  Bg4 {[%clk 0:02:15]} 18. Re3 {[%clk 0:00:44]}  Rb3 {[%clk 0:02:12]} 19. Rg1 {[%clk 0:00:33]}  Bxf3 {[%clk 0:02:05]} 20. Rxf3 {[%clk 0:00:33]}  Rfb8 {[%clk 0:02:06]} 21. Re1 {[%clk 0:00:12]}  e5 {[%clk 0:02:05]} 22. dxe5 {[%clk 0:00:11]}  dxe5 {[%clk 0:02:06]} 23. Rfe3 {[%clk 0:00:06]}  Nf4 {[%clk 0:02:05]} 24. Nd1 {[%clk 0:00:04]}  Qb6 {[%clk 0:01:34]} 25. Rxb3 {[%clk 0:00:04]}  Qxb3 {[%clk 0:01:33]} 26. Qc3 {[%clk 0:00:03]}  Nd3+ {[%clk 0:01:32]} 27. Kb1 {[%clk 0:00:01]}  Qxc3 {[%clk 0:01:31]} 0-1


[Site "https://www.chess.com"]